[Event "British Rapidplay Championship 2023"]
[Site "Mercure Bradford, Bankfield Hotel"]
[Date "2023.04.15"]
[Round "5.9"]
[White "Fava, Lorenzo"]
[Black "Walker, David J"]
[Result "0-1"]
[TimeControl "15 minutes plus 10 seconds per move"]
[WhiteElo "1728"]
[BlackElo "2250"]

1. d4 {[%clk 00:15:19]} {[%emt 00:00:01]} Nf6 {[%clk 00:15:18]} {[%emt
00:00:03]} 2. Bf4 {[%clk 00:15:26]} {[%emt 00:00:03]} d5 {[%clk 00:15:22]}
{[%emt 00:00:06]} 3. e3 {[%clk 00:15:34]} {[%emt 00:00:02]} c5 {[%clk
00:15:27]} {[%emt 00:00:05]} 4. Nf3 {[%clk 00:15:41]} {[%emt 00:00:02]} Nc6
{[%clk 00:15:30]} {[%emt 00:00:07]} 5. c3 {[%clk 00:15:49]} {[%emt 00:00:02]}
e6 {[%clk 00:15:34]} {[%emt 00:00:06]} 6. Nbd2 {[%clk 00:15:49]} {[%emt
00:00:09]} cxd4 {[%clk 00:15:42]} {[%emt 00:00:02]} 7. exd4 {[%clk 00:15:57]}
{[%emt 00:00:03]} Nh5 {[%clk 00:15:50]} {[%emt 00:00:02]} 8. Be3 {[%clk
00:16:05]} {[%emt 00:00:01]} Bd6 {[%clk 00:15:56]} {[%emt 00:00:04]} 9. Ne5
{[%clk 00:15:38]} {[%emt 00:00:37]} g6 {[%clk 00:16:04]} {[%emt 00:00:03]} 10.
Ndf3 {[%clk 00:14:20]} {[%emt 00:01:28]} O-O {[%clk 00:15:55]} {[%emt
00:00:19]} 11. Bd3 {[%clk 00:14:14]} {[%emt 00:00:16]} f6 {[%clk 00:15:12]}
{[%emt 00:00:53]} 12. Nxc6 {[%clk 00:13:12]} {[%emt 00:01:12]} bxc6 {[%clk
00:15:20]} {[%emt 00:00:02]} 13. g4 {[%clk 00:11:18]} {[%emt 00:02:04]} Nf4
{[%clk 00:15:12]} {[%emt 00:00:18]} 14. Bxf4 {[%clk 00:10:31]} {[%emt
00:00:57]} Bxf4 {[%clk 00:15:20]} {[%emt 00:00:02]} 15. Qc2 {[%clk 00:09:06]}
{[%emt 00:01:34]} e5 {[%clk 00:15:14]} {[%emt 00:00:16]} 16. Be2 {[%clk
00:07:10]} {[%emt 00:02:06]} Qe7 {[%clk 00:13:25]} {[%emt 00:01:59]} 17. dxe5
{[%clk 00:05:50]} {[%emt 00:01:30]} fxe5 {[%clk 00:13:27]} {[%emt 00:00:08]} 18.
Nd2 {[%clk 00:05:51]} {[%emt 00:00:10]} Qh4 {[%clk 00:11:57]} {[%emt 00:01:39]}
19. O-O-O {[%clk 00:05:21]} {[%emt 00:00:40]} Bxg4 {[%clk 00:10:56]} {[%emt
00:01:10]} 20. Bxg4 {[%clk 00:05:07]} {[%emt 00:00:25]} Qxg4 {[%clk 00:11:05]}
{[%emt 00:00:01]} 21. Kb1 {[%clk 00:05:05]} {[%emt 00:00:11]} Qf5 {[%clk
00:11:07]} {[%emt 00:00:08]} 22. Nb3 {[%clk 00:05:05]} {[%emt 00:00:10]} Qxc2+
{[%clk 00:10:57]} {[%emt 00:00:20]} 23. Kxc2 {[%clk 00:05:14]} {[%emt
00:00:02]} Rf6 {[%clk 00:10:17]} {[%emt 00:00:49]} 24. Nc5 {[%clk 00:05:19]}
{[%emt 00:00:06]} e4 {[%clk 00:09:13]} {[%emt 00:01:14]} 25. Nb3 {[%clk
00:04:32]} {[%emt 00:00:57]} Raf8 {[%clk 00:09:01]} {[%emt 00:00:23]} 26. Na5
{[%clk 00:03:54]} {[%emt 00:00:48]} Bc7 {[%clk 00:09:03]} {[%emt 00:00:07]} 27.
Nb3 {[%clk 00:03:42]} {[%emt 00:00:23]} Rxf2+ {[%clk 00:09:07]} {[%emt
00:00:05]} 28. Kb1 {[%clk 00:03:51]} Rxh2 {[%clk 00:08:30]} {[%emt 00:00:48]}
29. Nd4 {[%clk 00:03:55]} {[%emt 00:00:05]} Rxh1 {[%clk 00:08:18]} {[%emt
00:00:22]} 30. Rxh1 {[%clk 00:04:04]} {[%emt 00:00:01]} Rf6 {[%clk 00:08:23]}
{[%emt 00:00:05]} 31. c4 {[%clk 00:04:00]} {[%emt 00:00:14]} Be5 {[%clk
00:07:58]} {[%emt 00:00:35]} 32. Nc2 {[%clk 00:04:03]} {[%emt 00:00:07]} d4
{[%clk 00:07:59]} {[%emt 00:00:09]} 33. Re1 {[%clk 00:04:12]} {[%emt 00:00:01]}
Bg3 {[%clk 00:06:51]} {[%emt 00:01:18]} 34. Rd1 {[%clk 00:04:03]} {[%emt
00:00:20]} c5 {[%clk 00:06:53]} {[%emt 00:00:08]} 35. b4 {[%clk 00:04:11]}
{[%emt 00:00:01]} e3 {[%clk 00:05:33]} {[%emt 00:01:30]} 36. bxc5 {[%clk
00:03:41]} {[%emt 00:00:40]} e2 {[%clk 00:05:15]} {[%emt 00:00:28]} 37. Rxd4
{[%clk 00:03:39]} {[%emt 00:00:12]} Rf1+ {[%clk 00:05:12]} {[%emt 00:00:13]}
0-1

[Event "British Rapidplay Championship 2023"]
[Site "Mercure Bradford, Bankfield Hotel"]
[Date "2023.04.15"]
[Round "5.10"]
[White "Ackley, Peter JE"]
[Black "Hryshchenko, Kamila"]
[Result "0-1"]
[TimeControl "15 minutes plus 10 seconds per move"]
[WhiteElo "2151"]
[BlackElo "2019"]

1. c4 {[%clk 00:15:19]} d6 {[%clk 00:15:18]} {[%emt 00:00:02]} 2. g3 {[%clk
00:15:19]} {[%emt 00:00:11]} e5 {[%clk 00:15:26]} {[%emt 00:00:02]} 3. Nc3
{[%clk 00:15:05]} {[%emt 00:00:23]} f5 {[%clk 00:15:32]} {[%emt 00:00:04]} 4.
d4 {[%clk 00:15:12]} {[%emt 00:00:03]} Nf6 {[%clk 00:15:27]} {[%emt 00:00:15]}
5. Bg2 {[%clk 00:14:58]} {[%emt 00:00:24]} Nc6 {[%clk 00:14:49]} {[%emt
00:00:48]} 6. dxe5 {[%clk 00:14:23]} {[%emt 00:00:45]} dxe5 {[%clk 00:14:52]}
{[%emt 00:00:07]} 7. Qxd8+ {[%clk 00:14:27]} {[%emt 00:00:07]} Nxd8 {[%clk
00:14:17]} {[%emt 00:00:45]} 8. Bg5 {[%clk 00:13:18]} {[%emt 00:01:18]} c6
{[%clk 00:14:11]} {[%emt 00:00:16]} 9. Bxf6 {[%clk 00:12:01]} {[%emt 00:01:27]}
gxf6 {[%clk 00:14:18]} {[%emt 00:00:03]} 10. e4 {[%clk 00:11:58]} {[%emt
00:00:13]} Ne6 {[%clk 00:12:18]} {[%emt 00:02:10]} 11. Nge2 {[%clk 00:11:26]}
{[%emt 00:00:42]} f4 {[%clk 00:10:40]} {[%emt 00:01:49]} 12. a3 {[%clk
00:06:59]} {[%emt 00:04:37]} Bd7 {[%clk 00:09:44]} {[%emt 00:01:06]} 13. O-O-O
{[%clk 00:06:24]} {[%emt 00:00:45]} Bc5 {[%clk 00:09:26]} {[%emt 00:00:28]} 14.
Rhf1 {[%clk 00:06:06]} {[%emt 00:00:28]} a5 {[%clk 00:09:22]} {[%emt 00:00:14]}
15. Na4 {[%clk 00:05:38]} {[%emt 00:00:37]} Ba7 {[%clk 00:09:20]} {[%emt
00:00:12]} 16. Bh3 {[%clk 00:04:58]} {[%emt 00:00:50]} Rd8 {[%clk 00:03:21]}
{[%emt 00:06:10]} 17. gxf4 {[%clk 00:03:45]} {[%emt 00:01:22]} exf4 {[%clk
00:03:15]} {[%emt 00:00:17]} 18. Rd6 {[%clk 00:02:36]} {[%emt 00:01:19]} Ke7
{[%clk 00:02:57]} {[%emt 00:00:28]} 19. Rfd1 {[%clk 00:01:56]} {[%emt
00:00:49]} Bxf2 {[%clk 00:02:05]} {[%emt 00:01:02]} 20. Kc2 {[%clk 00:01:30]}
{[%emt 00:00:36]} Be3 {[%clk 00:01:36]} {[%emt 00:00:39]} 21. b3 {[%clk
00:01:00]} {[%emt 00:00:41]} Nd4+ {[%clk 00:01:27]} {[%emt 00:00:19]} 22. R6xd4
{[%clk 00:00:40]} {[%emt 00:00:29]} Bxh3 {[%clk 00:01:25]} {[%emt 00:00:13]} 23.
Rxd8 {[%clk 00:00:47]} {[%emt 00:00:02]} Rxd8 {[%clk 00:01:34]} {[%emt
00:00:01]} 24. Rxd8 {[%clk 00:00:56]} {[%emt 00:00:02]} Kxd8 {[%clk 00:01:43]}
{[%emt 00:00:01]} 25. Kd3 {[%clk 00:00:56]} {[%emt 00:00:10]} Bf1 {[%clk
00:01:33]} {[%emt 00:00:20]} 26. Nac3 {[%clk 00:00:59]} {[%emt 00:00:07]} Ke7
{[%clk 00:01:35]} {[%emt 00:00:07]} 27. b4 {[%clk 00:00:42]} {[%emt 00:00:28]}
axb4 {[%clk 00:01:41]} {[%emt 00:00:04]} 28. axb4 {[%clk 00:00:51]} {[%emt
00:00:01]} Ke6 {[%clk 00:01:04]} {[%emt 00:00:47]} 29. b5 {[%clk 00:00:28]}
{[%emt 00:00:33]} h6 {[%clk 00:01:09]} {[%emt 00:00:04]} 30. bxc6 {[%clk
00:00:36]} {[%emt 00:00:02]} bxc6 {[%clk 00:01:18]} {[%emt 00:00:02]} 31. Kc2
{[%clk 00:00:22]} {[%emt 00:00:24]} Ke5 {[%clk 00:01:09]} {[%emt 00:00:19]} 32.
Kd3 {[%clk 00:00:25]} {[%emt 00:00:07]} h5 {[%clk 00:01:14]} {[%emt 00:00:05]}
33. Kc2 {[%clk 00:00:33]} {[%emt 00:00:02]} h4 {[%clk 00:01:19]} {[%emt
00:00:04]} 34. Kd3 {[%clk 00:00:42]} {[%emt 00:00:02]} Bg1 {[%clk 00:01:15]}
{[%emt 00:00:14]} 0-1

[Event "British Rapidplay Championship 2023"]
[Site "Mercure Bradford, Bankfield Hotel"]
[Date "2023.04.15"]
[Round "5.11"]
[White "Sivanandan, Bodhana"]
[Black "Watson, Phil R"]
[Result "1-0"]
[TimeControl "15 minutes plus 10 seconds per move"]
[WhiteElo "1561"]
[BlackElo "2144"]

1. e4 {[%clk 00:15:17]} {[%emt 00:00:02]} c6 {[%clk 00:15:19]} {[%emt
00:00:02]} 2. Nc3 {[%clk 00:15:25]} {[%emt 00:00:02]} d5 {[%clk 00:15:26]}
{[%emt 00:00:02]} 3. Nf3 {[%clk 00:15:33]} {[%emt 00:00:02]} Bg4 {[%clk
00:15:34]} {[%emt 00:00:03]} 4. h3 {[%clk 00:15:38]} {[%emt 00:00:04]} Bxf3
{[%clk 00:15:42]} {[%emt 00:00:03]} 5. Qxf3 {[%clk 00:15:45]} {[%emt 00:00:02]}
d4 {[%clk 00:15:28]} {[%emt 00:00:24]} 6. Ne2 {[%clk 00:13:53]} {[%emt
00:02:02]} e5 {[%clk 00:14:58]} {[%emt 00:00:40]} 7. Ng3 {[%clk 00:13:02]}
{[%emt 00:01:02]} Nd7 {[%clk 00:14:44]} {[%emt 00:00:24]} 8. Bc4 {[%clk
00:12:24]} {[%emt 00:00:47]} Ngf6 {[%clk 00:14:16]} {[%emt 00:00:38]} 9. c3
{[%clk 00:11:13]} {[%emt 00:01:22]} b5 {[%clk 00:13:25]} {[%emt 00:01:01]} 10.
Bb3 {[%clk 00:10:20]} {[%emt 00:01:03]} Nc5 {[%emt 00:00:25]} 11. O-O {[%clk
00:09:16]} {[%emt 00:01:13]} a5 {[%clk 00:12:17]} {[%emt 00:01:04]} 12. cxd4
{[%clk 00:08:09]} {[%emt 00:01:16]} Nxb3 {[%clk 00:10:45]} {[%emt 00:01:42]} 13.
Qxb3 {[%clk 00:08:02]} {[%emt 00:00:17]} Qxd4 {[%clk 00:10:12]} {[%emt
00:00:43]} 14. d3 {[%clk 00:07:55]} {[%emt 00:00:18]} Rd8 {[%clk 00:07:36]}
{[%emt 00:02:46]} 15. Rd1 {[%clk 00:07:31]} {[%emt 00:00:34]} g6 {[%clk
00:04:06]} {[%emt 00:03:40]} 16. Be3 {[%clk 00:06:03]} {[%emt 00:01:38]} Qd7
{[%clk 00:03:44]} {[%emt 00:00:32]} 17. d4 {[%clk 00:05:30]} {[%emt 00:00:42]}
Qc7 {[%clk 00:02:20]} {[%emt 00:01:34]} 18. dxe5 {[%clk 00:05:18]} {[%emt
00:00:22]} Rxd1+ {[%clk 00:02:04]} {[%emt 00:00:27]} 19. Rxd1 {[%clk 00:05:25]}
{[%emt 00:00:03]} Qxe5 {[%clk 00:01:41]} {[%emt 00:00:33]} 20. Bd4 {[%clk
00:05:27]} {[%emt 00:00:08]} Qe7 {[%clk 00:01:01]} {[%emt 00:00:49]} 21. Qc3
{[%clk 00:05:22]} {[%emt 00:00:15]} Bg7 {[%clk 00:00:54]} {[%emt 00:00:17]} 22.
Qxc6+ {[%clk 00:05:28]} {[%emt 00:00:04]} Kf8 {[%clk 00:00:54]} {[%emt
00:00:11]} 23. Bc5 {[%clk 00:05:35]} {[%emt 00:00:03]} 1-0

[Event "British Rapidplay Championship 2023"]
[Site "Mercure Bradford, Bankfield Hotel"]
[Date "2023.04.15"]
[Round "5.12"]
[White "Cook, Phil"]
[Black "Hall, James"]
[Result "1-0"]
[TimeControl "15 minutes plus 10 seconds per move"]
[WhiteElo "2126"]
[BlackElo "1809"]

1. c4 {[%clk 00:15:16]} {[%emt 00:00:03]} e5 {[%clk 00:15:11]} {[%emt
00:00:09]} 2. Nc3 {[%clk 00:15:23]} {[%emt 00:00:03]} Nf6 {[%clk 00:15:18]}
{[%emt 00:00:03]} 3. Nf3 {[%clk 00:15:30]} {[%emt 00:00:03]} e4 {[%clk
00:15:27]} {[%emt 00:00:02]} 4. Ng5 {[%clk 00:15:32]} {[%emt 00:00:08]} b5
{[%clk 00:15:35]} {[%emt 00:00:02]} 5. d3 {[%clk 00:15:27]} {[%emt 00:00:16]}
exd3 {[%clk 00:15:41]} {[%emt 00:00:04]} 6. cxb5 {[%clk 00:15:02]} {[%emt
00:00:35]} dxe2 {[%clk 00:14:29]} {[%emt 00:01:22]} 7. Bxe2 {[%clk 00:14:18]}
{[%emt 00:00:54]} Bb7 {[%clk 00:13:57]} {[%emt 00:00:42]} 8. O-O {[%clk
00:13:31]} {[%emt 00:00:56]} Be7 {[%clk 00:12:29]} {[%emt 00:01:39]} 9. Bf3
{[%clk 00:12:59]} {[%emt 00:00:41]} d5 {[%clk 00:11:15]} {[%emt 00:01:25]} 10.
Re1 {[%clk 00:10:56]} {[%emt 00:02:13]} O-O {[%clk 00:10:36]} {[%emt 00:00:48]}
11. Nh3 {[%clk 00:10:01]} {[%emt 00:01:05]} c6 {[%clk 00:07:37]} {[%emt
00:03:09]} 12. Be3 {[%clk 00:07:06]} {[%emt 00:03:05]} cxb5 {[%clk 00:04:48]}
{[%emt 00:03:00]} 13. Nxb5 {[%clk 00:07:10]} {[%emt 00:00:06]} Bb4 {[%emt
00:01:07]} 14. Bd2 {[%clk 00:06:33]} {[%emt 00:00:45]} Bxd2 {[%clk 00:03:28]}
{[%emt 00:00:35]} 15. Qxd2 {[%clk 00:06:34]} {[%emt 00:00:09]} Qd7 {[%clk
00:03:01]} {[%emt 00:00:37]} 16. Nd4 {[%clk 00:05:45]} {[%emt 00:01:00]} Nc6
{[%clk 00:02:55]} {[%emt 00:00:16]} 17. Nf4 {[%clk 00:05:28]} {[%emt 00:00:26]}
Nxd4 {[%clk 00:02:09]} {[%emt 00:00:56]} 18. Qxd4 {[%clk 00:05:34]} {[%emt
00:00:05]} a5 {[%clk 00:00:59]} {[%emt 00:01:20]} 19. Rad1 {[%clk 00:04:39]}
{[%emt 00:01:05]} Rfe8 {[%clk 00:00:33]} {[%emt 00:00:36]} 20. h3 {[%clk
00:04:19]} {[%emt 00:00:30]} Rxe1+ {[%clk 00:00:22]} {[%emt 00:00:21]} 21. Rxe1
{[%clk 00:04:28]} {[%emt 00:00:01]} Rd8 {[%clk 00:00:25]} {[%emt 00:00:07]} 22.
Nd3 {[%clk 00:04:32]} {[%emt 00:00:07]} Qb5 {[%clk 00:00:24]} {[%emt 00:00:11]}
23. b3 {[%clk 00:04:19]} {[%emt 00:00:22]} Bc6 {[%clk 00:00:22]} {[%emt
00:00:12]} 24. Re7 {[%clk 00:04:13]} {[%emt 00:00:17]} Bd7 {[%clk 00:00:19]}
{[%emt 00:00:14]} 25. Nf4 {[%clk 00:03:29]} {[%emt 00:00:53]} Qb4 {[%clk
00:00:16]} {[%emt 00:00:13]} 26. Qxb4 {[%clk 00:03:25]} {[%emt 00:00:13]} axb4
{[%clk 00:00:25]} 27. Nxd5 {[%clk 00:03:23]} {[%emt 00:00:13]} Kf8 {[%clk
00:00:31]} {[%emt 00:00:04]} 28. Re5 {[%clk 00:03:14]} {[%emt 00:00:19]} Nxd5
{[%clk 00:00:36]} {[%emt 00:00:05]} 29. Bxd5 {[%clk 00:03:14]} {[%emt
00:00:10]} f6 {[%clk 00:00:36]} {[%emt 00:00:10]} 30. Re3 {[%clk 00:02:58]}
{[%emt 00:00:26]} Bb5 {[%clk 00:00:33]} {[%emt 00:00:14]} 31. Be4 {[%clk
00:02:43]} {[%emt 00:00:25]} Rc8 {[%clk 00:00:26]} {[%emt 00:00:16]} 32. Bxh7
{[%clk 00:02:37]} {[%emt 00:00:16]} Kf7 {[%clk 00:00:22]} {[%emt 00:00:14]} 33.
Bf5 {[%clk 00:02:44]} {[%emt 00:00:03]} Rc5 {[%clk 00:00:31]} {[%emt 00:00:01]}
34. Bd3 {[%clk 00:02:37]} {[%emt 00:00:18]} Bxd3 {[%clk 00:00:21]} {[%emt
00:00:20]} 35. Rxd3 {[%clk 00:02:46]} {[%emt 00:00:01]} Rc1+ {[%clk 00:00:19]}
{[%emt 00:00:12]} 36. Kh2 {[%clk 00:02:54]} {[%emt 00:00:02]} Rc2 {[%clk
00:00:28]} 37. Kg3 {[%clk 00:02:55]} {[%emt 00:00:09]} Rc3 {[%clk 00:00:30]}
{[%emt 00:00:09]} 38. Rf3 {[%clk 00:02:41]} {[%emt 00:00:23]} g5 {[%clk
00:00:33]} {[%emt 00:00:07]} 39. h4 {[%clk 00:02:38]} {[%emt 00:00:13]} Rc2
{[%clk 00:00:30]} {[%emt 00:00:13]} 40. hxg5 {[%clk 00:02:39]} {[%emt
00:00:09]} Rxa2 {[%clk 00:00:37]} {[%emt 00:00:04]} 41. Rxf6+ {[%clk 00:02:40]}
{[%emt 00:00:09]} Kg7 {[%clk 00:00:46]} 42. Rb6 {[%clk 00:02:36]} {[%emt
00:00:14]} Ra5 {[%clk 00:00:16]} {[%emt 00:00:40]} 43. Rxb4 {[%clk 00:02:44]}
{[%emt 00:00:02]} Rxg5+ {[%clk 00:00:24]} {[%emt 00:00:01]} 44. Rg4 {[%clk
00:02:52]} {[%emt 00:00:02]} 1-0

[Event "British Rapidplay Championship 2023"]
[Site "Mercure Bradford, Bankfield Hotel"]
[Date "2023.04.15"]
[Round "5.13"]
[White "Vijayakumar, Rishi"]
[Black "Edwards-Wright, Miles D"]
[Result "0-1"]
[TimeControl "15 minutes plus 10 seconds per move"]
[WhiteElo "1770"]
[BlackElo "1937"]

1. d4 {[%clk 00:15:19]} {[%emt 00:00:01]} g6 {[%clk 00:15:17]} {[%emt
00:00:03]} 2. Nf3 {[%clk 00:15:27]} {[%emt 00:00:02]} Bg7 {[%clk 00:15:24]}
{[%emt 00:00:02]} 3. g3 {[%clk 00:15:36]} {[%emt 00:00:01]} b6 {[%clk
00:15:08]} {[%emt 00:00:27]} 4. Bg2 {[%clk 00:15:43]} {[%emt 00:00:02]} Bb7
{[%clk 00:15:16]} {[%emt 00:00:03]} 5. O-O {[%clk 00:15:51]} {[%emt 00:00:02]}
d6 {[%clk 00:15:20]} {[%emt 00:00:06]} 6. c4 {[%clk 00:16:00]} {[%emt
00:00:02]} Nd7 {[%clk 00:15:25]} {[%emt 00:00:04]} 7. Nc3 {[%clk 00:16:08]}
{[%emt 00:00:02]} e5 {[%clk 00:14:58]} {[%emt 00:00:36]} 8. Bg5 {[%clk
00:16:05]} {[%emt 00:00:13]} f6 {[%clk 00:14:51]} {[%emt 00:00:17]} 9. Be3
{[%clk 00:16:03]} {[%emt 00:00:12]} Ne7 {[%clk 00:14:44]} {[%emt 00:00:17]} 10.
dxe5 {[%clk 00:16:05]} {[%emt 00:00:09]} dxe5 {[%clk 00:14:13]} {[%emt
00:00:41]} 11. Ng5 {[%clk 00:15:53]} {[%emt 00:00:22]} Bxg2 {[%clk 00:13:32]}
{[%emt 00:00:51]} 12. Ne6 {[%clk 00:15:58]} {[%emt 00:00:05]} Qc8 {[%clk
00:13:28]} {[%emt 00:00:13]} 13. Kxg2 {[%clk 00:15:24]} {[%emt 00:00:45]} Kf7
{[%clk 00:13:17]} {[%emt 00:00:21]} 14. Nxg7 {[%clk 00:15:18]} {[%emt
00:00:16]} Kxg7 {[%clk 00:13:25]} {[%emt 00:00:02]} 15. Nd5 {[%clk 00:14:40]}
{[%emt 00:00:48]} Qb7 {[%clk 00:13:18]} {[%emt 00:00:16]} 16. f3 {[%clk
00:14:18]} {[%emt 00:00:33]} Nf5 {[%clk 00:12:30]} {[%emt 00:00:58]} 17. Bf2
{[%clk 00:13:40]} {[%emt 00:00:47]} Rad8 {[%clk 00:12:07]} {[%emt 00:00:34]} 18.
e4 {[%clk 00:13:00]} {[%emt 00:00:51]} Nd6 {[%clk 00:12:06]} {[%emt 00:00:11]}
19. Qb3 {[%clk 00:12:46]} {[%emt 00:00:23]} c6 {[%clk 00:11:55]} {[%emt
00:00:22]} 20. Qa3 {[%clk 00:09:05]} {[%emt 00:03:52]} cxd5 {[%clk 00:11:28]}
{[%emt 00:00:36]} 21. cxd5 {[%clk 00:08:39]} {[%emt 00:00:36]} Nb8 {[%clk
00:10:32]} {[%emt 00:01:06]} 22. Rac1 {[%clk 00:08:44]} {[%emt 00:00:05]} Rd7
{[%clk 00:10:16]} {[%emt 00:00:27]} 23. Qe3 {[%clk 00:07:46]} {[%emt 00:01:08]}
Rc8 {[%clk 00:10:02]} {[%emt 00:00:24]} 24. f4 {[%clk 00:07:44]} {[%emt
00:00:13]} exf4 {[%clk 00:09:48]} {[%emt 00:00:24]} 25. Qxf4 {[%clk 00:07:27]}
{[%emt 00:00:27]} Rxc1 {[%clk 00:09:35]} {[%emt 00:00:23]} 26. Rxc1 {[%clk
00:07:01]} {[%emt 00:00:36]} Ne8 {[%clk 00:09:10]} {[%emt 00:00:35]} 27. Bd4
{[%clk 00:06:33]} {[%emt 00:00:39]} Rf7 {[%clk 00:08:51]} {[%emt 00:00:29]} 28.
b4 {[%clk 00:04:50]} {[%emt 00:01:53]} Nd7 {[%clk 00:08:36]} {[%emt 00:00:25]}
29. Rc6 {[%clk 00:03:58]} {[%emt 00:01:02]} Qa6 {[%clk 00:08:17]} {[%emt
00:00:29]} 30. Re6 {[%clk 00:03:44]} {[%emt 00:00:23]} Qe2+ {[%clk 00:07:18]}
{[%emt 00:01:09]} 31. Kh3 {[%clk 00:02:12]} {[%emt 00:01:43]} Nc7 {[%clk
00:06:12]} {[%emt 00:01:17]} 32. Rc6 {[%clk 00:00:44]} {[%emt 00:01:38]} Qh5+
{[%clk 00:05:22]} {[%emt 00:01:00]} 33. Kg2 {[%clk 00:00:53]} {[%emt 00:00:02]}
Nxd5 {[%clk 00:05:20]} {[%emt 00:00:11]} 34. Qd2 {[%clk 00:00:20]} {[%emt
00:00:43]} Ne7 {[%clk 00:05:07]} {[%emt 00:00:23]} 35. Re6 {[%clk 00:00:14]}
{[%emt 00:00:16]} Qg4 {[%clk 00:04:50]} {[%emt 00:00:27]} 36. Rd6 {[%clk
00:00:15]} {[%emt 00:00:09]} Qxe4+ {[%clk 00:04:52]} {[%emt 00:00:08]} 37. Kh3
{[%clk 00:00:20]} {[%emt 00:00:04]} Ne5 {[%clk 00:04:11]} {[%emt 00:00:52]} 38.
Qc3 {[%clk 00:00:14]} {[%emt 00:00:16]} Qg4+ {[%clk 00:03:56]} {[%emt
00:00:25]} 39. Kg2 {[%emt 00:00:16]} Qe2+ {[%clk 00:03:51]} 40. Kh3 {[%clk
00:00:29]} {[%emt 00:00:03]} Qf1+ {[%clk 00:03:57]} {[%emt 00:00:05]} 0-1